bitfinex-derivatives/quotes_BTCF0:USTF0_20250907
["timestamp","ask_amount","ask_price","bid_price","bid_amount"]
[1757254689723,1.52735016,111250.0,111240.0,0.06980961]
[1757254691225,1.52735016,111250.0,111240.0,0.05167415]
[1757254691424,1.52735016,111250.0,111230.0,0.0001]
[1757254691726,1.27755016,111250.0,111230.0,0.0001]
[1757254692523,0.83366,111240.0,111230.0,0.0001]
[1757254692724,0.90703618,111240.0,111230.0,0.001]
[1757254693225,0.90703618,111240.0,111230.0,0.002]
[1757254694024,0.90703618,111240.0,111230.0,0.003]
[1757254694431,0.90707618,111240.0,111230.0,0.003]
[1757254694825,0.08671618,111240.0,111230.0,0.003]
[1757254695022,0.90703618,111240.0,111230.0,0.003]
[1757254695223,0.90703618,111240.0,111230.0,0.02419]
[1757254695425,0.90703618,111240.0,111230.0,0.004]
[1757254696726,0.90707618,111240.0,111230.0,0.02519]
[1757254696929,0.90707618,111240.0,111230.0,0.004]
[1757254697115,0.90707618,111240.0,111230.0,0.02519]
[1757254698530,0.90707618,111240.0,111230.0,0.004]
[1757254700325,0.90707618,111240.0,111230.0,0.08473853]
[1757254700326,1.06707618,111240.0,111230.0,0.08473853]
[1757254700525,1.21707618,111240.0,111230.0,0.08473853]
[1757254701629,1.21707618,111240.0,111220.0,0.11329506]
[1757254701630,1.21707618,111240.0,111220.0,0.06848856]
[1757254701826,1.21727618,111240.0,111220.0,0.06848856]
[1757254702933,1.21727618,111240.0,111220.0,0.0021]
[1757254703336,1.21727618,111240.0,111220.0,0.0041]
[1757254706828,1.21727618,111240.0,111200.0,0.01328]
[1757254706829,1.21717618,111240.0,111200.0,0.01328]
[1757254707029,0.01334,111210.0,111200.0,0.03447]
[1757254707231,0.83362,111210.0,111200.0,0.03447]
[1757254708935,0.83362,111210.0,111200.0,0.001]
[1757254708936,1.44196,111210.0,111200.0,0.001]
[1757254710237,1.44296,111210.0,111180.0,0.12588376]
[1757254710427,1.19306,111210.0,111180.0,0.12588376]
[1757254711237,1.19306,111210.0,111200.0,0.003]
[1757254711437,1.19296,111210.0,111200.0,0.003]
[1757254711838,1.19696,111210.0,111190.0,0.01307]
[1757254712036,1.19806,111210.0,111190.0,0.01307]
[1757254713033,1.19606,111210.0,111190.0,0.01307]
[1757254713234,1.19806,111210.0,111190.0,0.01307]
[1757254713638,0.83366,111200.0,111190.0,0.03572]
[1757254714238,0.84540267,111200.0,111190.0,0.03572]
[1757254715333,0.84640267,111200.0,111190.0,0.03572]
[1757254716040,0.84840267,111200.0,111190.0,0.03572]
[1757254716543,0.02808267,111200.0,111190.0,0.03572]
[1757254716739,0.18112267,111200.0,111190.0,0.03572]
[1757254716939,0.32648267,111200.0,111190.0,0.03572]
[1757254717749,0.02808267,111200.0,111190.0,0.03572]
[1757254718140,0.18108267,111200.0,111190.0,0.03572]
[1757254721847,0.02808267,111200.0,111190.0,0.03572]
[1757254722048,0.32640267,111200.0,111190.0,0.03572]
[1757254722241,0.46440267,111200.0,111190.0,0.28572]
[1757254722447,0.01474267,111200.0,111190.0,0.28572]
[1757254723448,0.01474267,111200.0,111190.0,0.28472]
[1757254723848,0.02968267,111200.0,111190.0,0.28472]
[1757254724641,0.01474267,111200.0,111190.0,0.28472]
[1757254728160,0.01474267,111200.0,111190.0,0.39780376]
[1757254729655,0.02968267,111200.0,111190.0,0.39780376]
[1757254733258,0.01474267,111200.0,111190.0,0.39780376]
[1757254734468,0.01474267,111200.0,111190.0,0.28472]
[1757254739173,0.01474267,111200.0,111190.0,0.03472]
[1757254739365,0.003,111200.0,111190.0,0.28472]
[1757254740070,0.00064986,111200.0,111190.0,0.44623799]
[1757254741175,0.01187288,111200.0,111190.0,0.44623799]
[1757254741567,0.00064986,111200.0,111190.0,0.44623799]
[1757254743063,0.00064986,111200.0,111190.0,0.4673236]
[1757254743268,0.0001,111210.0,111200.0,0.03555]
[1757254743469,0.0001,111220.0,111210.0,0.03555]
[1757254743665,0.01618,111230.0,111220.0,0.03555]
[1757254743865,0.33608,111230.0,111220.0,0.14866216]
[1757254746377,0.33808,111230.0,111220.0,0.14866216]
[1757254746769,0.34916162,111230.0,111220.0,0.14866216]
[1757254747280,0.35116162,111230.0,111220.0,0.14866216]
[1757254753379,0.60116162,111230.0,111220.0,0.11311216]
[1757254753578,0.60116162,111230.0,111220.0,0.08076092]
[1757254754180,1.42100162,111230.0,111220.0,0.11631092]
[1757254754483,1.42100162,111230.0,111220.0,0.03555]
[1757254756083,1.42100162,111230.0,111210.0,0.11571093]
[1757254756270,1.17110162,111230.0,111210.0,0.01387]
[1757254756474,1.17110162,111230.0,111220.0,0.08076092]
[1757254756680,1.17100162,111230.0,111220.0,0.08076092]
[1757254757786,1.16900162,111230.0,111220.0,0.08076092]
[1757254758284,1.17200162,111230.0,111220.0,0.08076092]
[1757254758884,1.17000162,111230.0,111220.0,0.08076092]
[1757254759085,1.17300162,111230.0,111220.0,0.08076092]
[1757254761086,1.17400162,111230.0,111220.0,0.08076092]
[1757254761284,1.42400162,111230.0,111220.0,0.08076092]
[1757254761980,1.43399162,111230.0,111210.0,0.08086092]
[1757254762283,1.18409162,111230.0,111210.0,0.08086092]
[1757254762481,1.43409162,111230.0,111210.0,0.08086092]
[1757254762681,1.53409162,111230.0,111210.0,0.07087092]
[1757254762875,1.53409162,111230.0,111210.0,0.0001]
[1757254763786,0.81976,111220.0,111210.0,0.0001]
[1757254764086,1.19791247,111220.0,111200.0,0.03565]
[1757254764279,1.19801247,111220.0,111200.0,0.03565]
[1757254765079,0.81976,111210.0,111200.0,0.03565]
[1757254765280,1.15976,111210.0,111200.0,0.01377]
[1757254766087,0.34,111210.0,111200.0,0.01377]
[1757254766287,1.15976,111210.0,111200.0,0.01377]
[1757254766590,1.15976,111210.0,111200.0,0.03555]
[1757254767490,1.16276,111210.0,111200.0,0.03555]
[1757254767890,1.16276,111210.0,111200.0,0.01377]
[1757254768290,1.16476,111210.0,111200.0,0.01377]
[1757254768893,0.345,111210.0,111200.0,0.01377]
[1757254769095,1.16476,111210.0,111200.0,0.03555]
[1757254771695,1.16476,111210.0,111200.0,0.1162768]
[1757254772794,1.16476,111210.0,111200.0,0.0944968]
[1757254773291,1.16476,111210.0,111200.0,0.0807268]
[1757254780807,1.16476,111210.0,111190.0,0.1148468]
[1757254781108,1.16486,111210.0,111190.0,0.1148468]
[1757254781504,1.16486,111210.0,111200.0,0.0807268]
[1757254781707,1.16476,111210.0,111190.0,0.0928968]
[1757254781902,1.16486,111210.0,111190.0,0.1148468]
[1757254783110,1.16486,111210.0,111200.0,0.0807268]
[1757254783407,1.16476,111210.0,111200.0,0.0807268]
[1757254784810,1.16476,111210.0,111190.0,0.0928968]
[1757254785011,1.16486,111210.0,111190.0,0.0928968]
[1757254785313,1.16486,111210.0,111190.0,0.0808268]
[1757254785811,1.16186,111210.0,111200.0,0.0807268]
[1757254786109,1.26276,111210.0,111200.0,0.0807268]
[1757254786409,0.445,111210.0,111200.0,0.0807268]
[1757254786608,1.26468,111210.0,111200.0,0.0807268]
[1757254787203,1.26468,111210.0,111190.0,0.0808268]
[1757254787408,1.51478,111210.0,111190.0,0.0808268]
[1757254789515,1.51478,111210.0,111200.0,0.0807268]
[1757254789814,3.79445946,111210.0,111190.0,0.0808268]
[1757254790016,3.79455946,111210.0,111190.0,0.07617474]
[1757254790314,3.79455946,111210.0,111190.0,0.04798593]
[1757254790818,3.79255946,111210.0,111180.0,0.11311216]
[1757254791010,3.79455946,111210.0,111180.0,0.11311216]
[1757254791216,3.79455946,111210.0,111170.0,0.31035015]
[1757254791515,0.0001,111200.0,111170.0,0.14883216]
[1757254791712,0.81964,111190.0,111170.0,0.14883216]
[1757254792021,0.83761767,111190.0,111170.0,0.14883216]
[1757254792420,0.83761767,111190.0,111180.0,0.11311216]
[1757254792612,0.83751767,111190.0,111180.0,0.11311216]
[1757254792818,0.83751767,111190.0,111170.0,0.14883216]
[1757254793017,0.83761767,111190.0,111170.0,0.14883216]
[1757254795918,0.83761767,111190.0,111170.0,0.12688216]
[1757254796121,0.8196,111180.0,111170.0,0.01377]
[1757254796426,0.93688994,111180.0,111170.0,0.01377]
[1757254797520,0.93688994,111180.0,111170.0,0.01477]
[1757254797824,1.00793158,111180.0,111170.0,0.01577]
[1757254798018,1.00793158,111180.0,111170.0,0.002]
[1757254800321,1.05793158,111180.0,111170.0,0.002]
[1757254800526,1.32793158,111180.0,111170.0,0.002]
[1757254800917,1.32793158,111180.0,111170.0,0.00649]
[1757254801726,1.32993158,111180.0,111170.0,0.00549]
[1757254803330,1.32993158,111180.0,111170.0,0.00449]
[1757254803526,1.33293158,111180.0,111170.0,0.00449]
[1757254804028,1.33293158,111180.0,111170.0,0.00445]
[1757254804228,1.33293158,111180.0,111150.0,0.03572]
[1757254804420,1.33303158,111180.0,111150.0,0.03572]
[1757254805330,0.51343158,111180.0,111150.0,0.03572]
[1757254805630,0.81968,111170.0,111150.0,0.03572]
[1757254805930,1.15968,111170.0,111150.0,0.03572]
[1757254806329,0.81968,111160.0,111150.0,0.03572]
[1757254808028,0.83066505,111160.0,111150.0,0.03572]
[1757254810034,0.83066505,111160.0,111140.0,0.03669]
[1757254810340,0.83066505,111160.0,111140.0,0.03679]
[1757254810636,0.83079989,111160.0,111140.0,0.03679]
[1757254811633,0.01111989,111160.0,111140.0,0.03679]
[1757254811840,0.01111989,111160.0,111150.0,0.03647]
[1757254812136,0.52343989,111160.0,111150.0,0.03647]
[1757254812835,0.52443989,111160.0,111150.0,0.03647]
[1757254813531,0.52443989,111160.0,111150.0,0.01355]
[1757254814132,0.52443989,111160.0,111150.0,0.03647]
[1757254814541,0.52443989,111160.0,111150.0,0.01355]
[1757254815237,0.02168,111150.0,111140.0,0.0001]
[1757254815545,0.03996025,111150.0,111130.0,0.01836]
[1757254815733,0.85276,111140.0,111130.0,0.04128]
[1757254815933,0.85276,111140.0,111130.0,0.04118]
[1757254816133,0.8322,111140.0,111130.0,0.29118]
[1757254819636,0.8322,111140.0,111130.0,0.28669]
[1757254823443,0.8322,111140.0,111130.0,0.39980216]
[1757254824244,0.01828025,111150.0,111130.0,0.39980216]
[1757254824543,0.39364025,111150.0,111140.0,0.03647]
[1757254825240,0.39464025,111150.0,111140.0,0.03647]
[1757254825441,0.39564025,111150.0,111140.0,0.03647]
[1757254826240,0.39464025,111150.0,111140.0,0.03647]
[1757254826446,0.39564025,111150.0,111140.0,0.03647]
[1757254831652,0.39564025,111150.0,111140.0,0.01647]
[1757254831844,0.40241025,111150.0,111140.0,0.01647]
[1757254839950,0.40241025,111150.0,111140.0,0.02096]
[1757254840657,0.04873025,111150.0,111140.0,0.02096]
[1757254840847,0.88169025,111150.0,111140.0,0.03424]
[1757254841044,0.04196025,111150.0,111140.0,0.03424]
[1757254841244,0.87492025,111150.0,111140.0,0.03424]
[1757254841450,0.04196025,111150.0,111140.0,0.03424]
[1757254841656,0.87488025,111150.0,111140.0,0.03424]
[1757254841860,0.04196025,111150.0,111140.0,0.03424]
[1757254842050,0.87480025,111150.0,111140.0,0.03424]
[1757254842554,0.04196025,111150.0,111140.0,0.03424]
[1757254842765,0.85300025,111150.0,111140.0,0.28424]
[1757254843458,0.04314025,111150.0,111140.0,0.28424]
[1757254845053,0.02028025,111150.0,111140.0,0.28424]
[1757254845253,0.002,111150.0,111140.0,0.28424]
[1757254845659,0.002,111150.0,111140.0,0.3742082]
[1757254845860,0.01111989,111160.0,111140.0,0.3742082]
[1757254846057,0.00013484,111160.0,111150.0,0.3757401]
[1757254846256,0.07114164,111180.0,111170.0,0.03578]
[1757254846561,0.40104164,111180.0,111170.0,0.03578]
[1757254847261,0.40104164,111180.0,111170.0,0.39888584]
[1757254847262,0.07104164,111180.0,111170.0,0.39888584]
[1757254847464,0.001,111180.0,111170.0,0.39888584]
[1757254847660,0.001,111180.0,111170.0,0.28578]
[1757254847961,0.001,111180.0,111170.0,0.44729799]
[1757254848260,0.01148531,111180.0,111170.0,0.44729799]
[1757254849061,0.01048531,111180.0,111170.0,0.44729799]
[1757254849259,0.83238,111190.0,111170.0,0.44729799]
[1757254849464,1.17524,111190.0,111180.0,0.14870558]
[1757254849663,1.17514,111190.0,111180.0,0.14870558]
[1757254850164,1.17514,111190.0,111180.0,0.03578]
[1757254850565,0.34286,111190.0,111180.0,0.14870558]
[1757254851465,0.34286,111190.0,111180.0,0.03578]
[1757254852065,0.35363856,111190.0,111180.0,0.03578]
[1757254854654,0.35463856,111190.0,111180.0,0.03578]
[1757254857968,1.18567856,111190.0,111180.0,0.03578]
[1757254858661,0.35463856,111190.0,111180.0,0.03578]
[1757254858866,1.18539856,111190.0,111180.0,0.03578]
[1757254859367,0.35463856,111190.0,111180.0,0.03578]
[1757254859760,1.16245856,111190.0,111180.0,0.03578]
[1757254860161,0.33177856,111190.0,111180.0,0.03578]
[1757254862360,0.33177856,111190.0,111180.0,0.28578]
[1757254864169,0.33077856,111190.0,111180.0,0.28578]
[1757254864370,0.10077856,111190.0,111180.0,0.28578]
[1757254864770,0.12363856,111190.0,111180.0,0.28578]
[1757254865363,0.10077856,111190.0,111180.0,0.28578]
[1757254866072,0.10077856,111190.0,111180.0,0.29027]
[1757254866860,0.12237856,111190.0,111180.0,0.29027]
[1757254867370,0.10077856,111190.0,111180.0,0.29027]
[1757254868169,0.10077856,111190.0,111180.0,0.29127]
[1757254869674,0.09,111190.0,111180.0,0.29127]
[1757254869874,0.8303,111200.0,111180.0,0.29127]
[1757254870067,1.1503,111200.0,111190.0,0.03679]
[1757254870264,0.32,111200.0,111190.0,0.03679]
[1757254870469,0.33017757,111200.0,111190.0,0.03679]
[1757254871368,0.33117757,111200.0,111190.0,0.03679]
[1757254873474,0.35277757,111200.0,111190.0,0.03679]
[1757254873877,0.33117757,111200.0,111190.0,0.03679]
[1757254875378,0.33117757,111200.0,111190.0,0.14971558]
[1757254876271,0.01117757,111200.0,111190.0,0.14971558]
[1757254876470,0.01117757,111200.0,111190.0,0.03679]
[1757254876877,0.03277757,111200.0,111190.0,0.03679]
[1757254877676,0.03277757,111200.0,111190.0,0.03779]
[1757254878980,0.03177757,111200.0,111190.0,0.03779]
[1757254879379,0.03177757,111200.0,111190.0,0.04228]
[1757254880278,0.01017757,111200.0,111190.0,0.04228]
[1757254880480,0.8302,111210.0,111190.0,0.04228]
[1757254880672,1.1918,111210.0,111200.0,0.03679]
[1757254880868,1.1917,111210.0,111200.0,0.03679]
[1757254881380,1.19022,111210.0,111200.0,0.02679]
[1757254882270,0.3617,111210.0,111200.0,0.02679]
[1757254882477,0.3401,111210.0,111200.0,0.02679]
[1757254882874,0.3401,111210.0,111200.0,0.10761505]
[1757254883576,0.35046075,111210.0,111200.0,0.02679]
[1757254883776,0.35146075,111210.0,111200.0,0.02679]
[1757254884175,0.35046075,111210.0,111200.0,0.02679]
[1757254884369,0.35146075,111210.0,111200.0,0.02679]
[1757254887974,0.37306075,111210.0,111200.0,0.02679]
[1757254888580,0.35146075,111210.0,111200.0,0.02679]
[1757254889380,0.37306075,111210.0,111200.0,0.02679]
[1757254890282,0.37306075,111210.0,111200.0,0.13971558]
[1757254892181,0.37306075,111210.0,111200.0,0.02679]
[1757254894289,0.37306075,111210.0,111200.0,0.14420558]
[1757254894786,0.35146075,111210.0,111200.0,0.14420558]
[1757254896088,0.37328075,111210.0,111200.0,0.14420558]
[1757254896290,0.35146075,111210.0,111200.0,0.14420558]
[1757254897686,0.37328075,111210.0,111200.0,0.14420558]
[1757254900298,0.37328075,111210.0,111200.0,0.03128]
[1757254909799,0.35146075,111210.0,111200.0,0.03128]
[1757254910402,0.37328075,111210.0,111200.0,0.03128]
[1757254910899,0.35146075,111210.0,111200.0,0.1212001]
[1757254911508,0.35146075,111210.0,111200.0,0.03128]
[1757254911802,0.37328075,111210.0,111200.0,0.03128]
[1757254913505,0.20324012,111210.0,111200.0,0.03128]
[1757254913996,0.20324012,111210.0,111200.0,0.19279799]
[1757254913997,0.08328075,111210.0,111200.0,0.19279799]
[1757254914202,0.08328075,111210.0,111200.0,0.21367678]
[1757254914898,0.08328075,111210.0,111200.0,0.05215879]
[1757254915404,0.08328075,111210.0,111200.0,0.16551803]
[1757254916802,0.05,111210.0,111200.0,0.16551803]
[1757254917197,0.02192,111220.0,111210.0,0.01387]
[1757254917505,0.35212155,111220.0,111210.0,0.03571]
[1757254918504,0.35212155,111220.0,111210.0,0.0402]
[1757254918694,0.35512155,111220.0,111210.0,0.0402]
[1757254926095,0.35512155,111220.0,111210.0,0.20171799]
[1757254929311,0.35512155,111220.0,111210.0,0.0402]
[1757254938917,0.35512155,111220.0,111210.0,0.20171799]
[1757254939119,0.35522155,111220.0,111210.0,0.20171799]
[1757254939719,0.63169493,111220.0,111210.0,0.16600799]
[1757254940018,1.45473493,111220.0,111210.0,0.00449]
[1757254940319,1.45473493,111220.0,111210.0,0.11784162]
[1757254943014,1.45473493,111220.0,111210.0,0.00449]
[1757254946423,0.63169493,111220.0,111210.0,0.00449]
[1757254946624,1.45437493,111220.0,111210.0,0.00449]
[1757254951125,0.63169493,111220.0,111210.0,0.00449]
[1757254951325,1.45413493,111220.0,111210.0,0.02631]
[1757254953725,0.63169493,111220.0,111210.0,0.00449]
[1757254953922,1.45413493,111220.0,111210.0,0.02756]
[1757254954235,1.45413493,111220.0,111210.0,0.00449]
[1757254955132,1.45413493,111220.0,111210.0,0.11784162]
[1757254956034,0.63169493,111220.0,111210.0,0.14091162]
[1757254956332,1.45413493,111220.0,111210.0,0.14091162]
[1757254959326,1.20413493,111220.0,111210.0,0.14091162]
[1757254960332,1.20413493,111220.0,111210.0,0.11784162]
[1757254961231,1.20413493,111220.0,111210.0,0.14091162]
[1757254962136,1.20413493,111220.0,111210.0,0.11784162]
[1757254980453,1.20413493,111220.0,111210.0,0.00449]
[1757254982554,1.20413493,111220.0,111210.0,0.11784162]
[1757254983056,0.38169493,111220.0,111210.0,0.11784162]
[1757254983355,1.20401493,111220.0,111210.0,0.02756]
[1757254983555,1.20401493,111220.0,111210.0,0.00449]
[1757254985158,1.20401493,111220.0,111210.0,0.02683]
[1757254986250,1.19606493,111220.0,111210.0,0.03976]
[1757254987356,0.37374493,111220.0,111210.0,0.03976]
[1757254987561,1.19606493,111220.0,111210.0,0.03976]
[1757254987763,1.19606493,111220.0,111210.0,0.15311162]
[1757254991460,1.19606493,111220.0,111210.0,0.03976]
[1757254992766,1.19606493,111220.0,111210.0,0.02683]
[1757254993062,1.19606493,111220.0,111210.0,0.14016623]
[1757254997166,1.19606493,111220.0,111210.0,0.02683]
[1757255004570,1.19606493,111220.0,111210.0,0.03976]
[1757255004771,1.19606493,111220.0,111210.0,0.15309623]
[1757255007979,0.37374493,111220.0,111210.0,0.15309623]
[1757255008179,1.19586493,111220.0,111210.0,0.15309623]
[1757255010480,0.37374493,111220.0,111210.0,0.40309623]
[1757255010683,0.92730155,111220.0,111210.0,0.52309623]
[1757255011276,0.08340155,111220.0,111210.0,0.52309623]
[1757255011470,0.0031,111220.0,111210.0,0.78309623]
[1757255011680,0.0031,111220.0,111210.0,0.63300913]
[1757255012075,0.0021,111220.0,111210.0,0.85300913]
[1757255012476,0.0021,111220.0,111210.0,0.63300913]
[1757255012979,0.01186231,111220.0,111210.0,0.63300913]
[1757255013175,0.0021,111220.0,111210.0,0.50409623]
[1757255013571,0.0234,111220.0,111210.0,0.50409623]
[1757255014277,0.0234,111220.0,111210.0,0.39076]
[1757255017683,0.03353014,111220.0,111210.0,0.39076]
[1757255019285,0.03353014,111220.0,111210.0,0.14076]
[1757255019480,0.03353014,111220.0,111210.0,0.04076]
[1757255019686,0.03353014,111220.0,111210.0,0.28379327]
[1757255020187,0.03353014,111220.0,111210.0,0.15379327]
[1757255020883,0.99501014,111220.0,111210.0,0.15379327]
[1757255021083,1.00162014,111220.0,111210.0,0.15379327]
[1757255022386,1.00162014,111220.0,111210.0,0.02783]
[1757255022785,1.00162014,111220.0,111210.0,0.00549]
[1757255023187,1.11162014,111220.0,111210.0,0.00549]
[1757255024292,1.11162014,111220.0,111210.0,0.02771]
[1757255030694,1.30981673,111220.0,111210.0,0.02771]
[1757255032996,1.19981673,111220.0,111210.0,0.02771]
[1757255037599,1.26981673,111220.0,111210.0,0.02771]
[1757255042013,1.26981673,111220.0,111210.0,0.14074327]
[1757255043614,1.26981673,111220.0,111210.0,0.02771]
[1757255044818,1.26981673,111220.0,111210.0,0.14074327]
[1757255045218,1.26981673,111220.0,111210.0,0.00549]
[1757255046119,1.26981673,111220.0,111210.0,0.02768]
[1757255046319,0.55833673,111220.0,111210.0,0.02768]
[1757255046516,1.37997673,111220.0,111210.0,0.14071327]
[1757255047117,0.55833673,111220.0,111210.0,0.02768]
[1757255047316,1.37993673,111220.0,111210.0,0.14071327]
[1757255047505,1.37332673,111220.0,111210.0,0.15443327]
[1757255050219,0.55172673,111220.0,111210.0,0.15443327]
[1757255050411,1.37328673,111220.0,111210.0,0.15443327]
[1757255051221,0.55172673,111220.0,111210.0,0.15443327]
[1757255051421,1.37328673,111220.0,111210.0,0.15443327]
[1757255053218,1.37989673,111220.0,111210.0,0.14071327]
[1757255056622,0.55833673,111220.0,111210.0,0.02768]
[1757255056829,1.37320673,111220.0,111210.0,0.0414]
[1757255071334,1.37120673,111220.0,111210.0,0.0414]
[1757255072633,1.17301014,111220.0,111210.0,0.0424]
[1757255072830,0.92281014,111220.0,111210.0,0.51112633]
[1757255073035,0.92277014,111220.0,111210.0,0.62446204]
[1757255074433,0.0701,111220.0,111210.0,0.42626545]
[1757255074628,0.0001,111220.0,111210.0,0.70932292]
[1757255075136,0.0001,111220.0,111210.0,1.25891477]
[1757255075434,0.0001,111230.0,111220.0,0.0353]
[1757255075635,0.03,111230.0,111220.0,0.39518684]
[1757255076240,0.03,111230.0,111220.0,0.19699025]
[1757255076432,0.03,111230.0,111220.0,0.39518684]
[1757255077139,0.03,111230.0,111220.0,0.39967684]
[1757255078140,0.03,111230.0,111220.0,0.20148025]
[1757255078432,0.05314,111230.0,111220.0,0.39967684]
[1757255078939,0.05314,111230.0,111220.0,0.23798659]
[1757255082743,0.06168,111230.0,111220.0,0.23798659]
[1757255083944,0.06168,111230.0,111220.0,0.03979]
[1757255084146,0.06168,111230.0,111220.0,0.23798659]
[1757255084336,0.25977981,111230.0,111220.0,0.23788981]
[1757255084642,0.06168,111230.0,111220.0,0.23788981]
[1757255084940,0.06168,111230.0,111220.0,0.43598962]
[1757255086146,0.06168,111230.0,111220.0,0.03979]
[1757255086446,0.06168,111230.0,111220.0,0.43598962]
[1757255089149,0.25977981,111230.0,111220.0,0.23788981]
[1757255091646,0.25977981,111230.0,111220.0,0.03979]
[1757255091851,0.25977981,111230.0,111220.0,0.23788981]
[1757255097244,0.06168,111230.0,111220.0,0.23788981]
[1757255097445,0.25977981,111230.0,111220.0,0.23788981]
[1757255097952,0.03854,111230.0,111220.0,0.43598962]
[1757255098253,0.06168,111230.0,111220.0,0.43598962]
[1757255098854,0.06168,111230.0,111220.0,0.23788981]
[1757255099054,0.06168,111230.0,111220.0,0.59767987]
[1757255100354,0.25977981,111230.0,111220.0,0.39958006]
[1757255103759,0.25123981,111230.0,111220.0,0.23788981]
[1757255107849,0.25977981,111230.0,111220.0,0.23788981]
[1757255108858,0.06168,111230.0,111220.0,0.23788981]
[1757255109160,0.25977981,111230.0,111220.0,0.23788981]
[1757255119267,0.46977981,111230.0,111220.0,0.23788981]
[1757255119964,0.46977981,111230.0,111220.0,0.39958006]
[1757255125566,0.46977981,111230.0,111220.0,0.23788981]
[1757255127968,0.46977981,111230.0,111220.0,0.39958006]
[1757255129566,0.46977981,111230.0,111220.0,0.20148025]
[1757255129769,0.9443884,111230.0,111220.0,0.18754025]
[1757255130171,0.9443884,111230.0,111220.0,0.30088838]
[1757255130471,0.9443884,111230.0,111220.0,0.13919813]
[1757255130863,0.9443884,111230.0,111220.0,0.11783813]
[1757255131066,0.9443884,111230.0,111220.0,0.11779985]
[1757255131467,0.9443884,111230.0,111220.0,0.11819985]
[1757255133572,0.9443884,111230.0,111220.0,0.00489]
[1757255135473,0.9443884,111230.0,111220.0,0.11819985]
[1757255136573,0.7043884,111230.0,111220.0,0.11819985]
[1757255137877,1.5246684,111230.0,111220.0,0.11819985]
[1757255139278,1.2746684,111230.0,111220.0,0.11819985]
[1757255140383,1.2746684,111230.0,111220.0,0.00489]
[1757255144382,1.07665669,111230.0,111220.0,0.00489]
[1757255147582,0.25637669,111230.0,111220.0,0.00489]
[1757255147880,1.07657669,111230.0,111220.0,0.00489]
[1757255148778,1.41657669,111230.0,111220.0,0.00489]
[1757255149983,1.41653669,111230.0,111220.0,0.00489]
[1757255150183,1.41653669,111230.0,111220.0,0.0271]
[1757255150579,1.41653669,111230.0,111220.0,0.00489]
[1757255152379,1.41653669,111230.0,111220.0,0.11819985]
[1757255156486,1.42717669,111230.0,111220.0,0.11819985]
[1757255158182,0.60701669,111230.0,111220.0,0.11819985]
[1757255158387,1.42705669,111230.0,111220.0,0.11819985]
[1757255164789,0.60701669,111230.0,111220.0,0.11819985]
[1757255165089,1.42701669,111230.0,111220.0,0.11819985]
[1757255166891,0.40882878,111230.0,111220.0,0.11819985]
[1757255167094,1.42697669,111230.0,111220.0,0.14041985]
[1757255167794,1.42697669,111230.0,111220.0,0.11819985]
[1757255168193,0.60701669,111230.0,111220.0,0.11819985]
[1757255168594,1.42693669,111230.0,111220.0,0.11819985]
[1757255195634,0.60701669,111230.0,111220.0,0.11819985]
[1757255195823,1.42649669,111230.0,111220.0,0.11819985]
[1757255199135,0.60701669,111230.0,111220.0,0.14096985]
[1757255199336,1.42645669,111230.0,111220.0,0.14096985]
[1757255200038,1.42645669,111230.0,111220.0,0.11819985]
[1757255205241,0.60701669,111230.0,111220.0,0.11819985]
[1757255205446,1.42637669,111230.0,111220.0,0.14096985]
[1757255206352,1.62454684,111230.0,111220.0,0.14096985]
[1757255207547,1.22818878,111230.0,111220.0,0.14096985]
[1757255207748,1.62454684,111230.0,111220.0,0.14096985]
[1757255208047,1.62454684,111230.0,111220.0,0.15359985]
[1757255208949,0.80518684,111230.0,111220.0,0.15359985]
[1757255209150,1.41833781,111230.0,111220.0,0.04029]
[1757255209447,1.61651684,111230.0,111220.0,0.04029]
[1757255215542,1.61651684,111230.0,111220.0,0.15360741]
[1757255220850,1.62446684,111230.0,111220.0,0.02766]
[1757255223252,1.62446684,111230.0,111220.0,0.00489]
[1757255232552,1.62446684,111230.0,111220.0,0.11820741]
[1757255235660,1.62446684,111230.0,111220.0,0.00489]
[1757255241467,1.62446684,111230.0,111220.0,0.00449]
[1757255242077,1.62446684,111230.0,111220.0,0.00489]
[1757255249474,1.62386684,111230.0,111220.0,0.00489]
[1757255251778,1.62345578,111230.0,111220.0,0.00489]
[1757255252578,0.80477578,111230.0,111220.0,0.00489]
[1757255252878,1.62341578,111230.0,111220.0,0.00489]
[1757255254278,1.62341578,111230.0,111220.0,0.11820741]
[1757255254677,1.62341578,111230.0,111220.0,0.00489]
[1757255255068,1.62341578,111230.0,111220.0,0.11820741]
[1757255257377,1.62341578,111230.0,111220.0,0.00489]
[1757255259479,0.80477578,111230.0,111220.0,0.00489]
[1757255259678,1.62329578,111230.0,111220.0,0.00489]
[1757255261080,1.62329578,111230.0,111220.0,0.11820741]
[1757255262180,1.62325578,111230.0,111220.0,0.11820741]
[1757255265181,0.80477578,111230.0,111220.0,0.11820741]
[1757255265384,1.62317578,111230.0,111220.0,0.11820741]
[1757255266383,1.42501882,111230.0,111220.0,0.00489]
[1757255275493,1.42501882,111230.0,111220.0,0.11820741]
[1757255287215,1.42501882,111230.0,111220.0,0.00489]
[1757255287410,1.42501882,111230.0,111220.0,0.00449]
[1757255288112,1.42501882,111230.0,111220.0,0.00489]
[1757255290005,1.42501882,111230.0,111220.0,0.11820741]
[1757255294817,0.60661882,111230.0,111220.0,0.11820741]
[1757255295012,1.42457882,111230.0,111220.0,0.11820741]
[1757255299525,1.62277992,111230.0,111220.0,0.11820741]
[1757255299725,1.42457882,111230.0,111220.0,0.11820741]
[1757255305836,1.42457882,111230.0,111220.0,0.00489]
[1757255306129,1.42457882,111230.0,111220.0,0.11820741]
[1757255311538,1.22637772,111230.0,111220.0,0.11820741]
[1757255311730,1.42457882,111230.0,111220.0,0.11820741]
[1757255322646,1.42457882,111230.0,111220.0,0.00489]
[1757255325047,1.42457882,111230.0,111220.0,0.11820741]
[1757255325552,0.60661882,111230.0,111220.0,0.11820741]
[1757255325847,1.42493882,111230.0,111220.0,0.11820741]
[1757255326344,1.62316026,111230.0,111220.0,0.11820741]
[1757255326849,1.62304026,111230.0,111220.0,0.11820741]
[1757255336569,1.62304026,111230.0,111220.0,0.14034741]
[1757255338767,1.62304026,111230.0,111220.0,0.11820741]
[1757255340058,1.62304026,111230.0,111220.0,0.14034741]
[1757255340457,1.62304026,111230.0,111220.0,0.11820741]
[1757255340661,1.62276026,111230.0,111220.0,0.02703]
[1757255340867,1.62276026,111230.0,111220.0,0.03986]